lending/lending_fUSD_20251107
["ID","MTS","AMOUNT","RATE_DAILY","PERIOD"]
[393370391,1762537839354,-150.0,0.0001696,2]
[393370392,1762537839364,-274.0,0.00016962,2]
[393370393,1762537839378,-500.0,0.00016973,2]
[393370394,1762537839389,-500.0,0.00016973,2]
[393370395,1762537839399,-178.49015745,0.00016985,2]
[393370396,1762537839410,-500.0,0.00016985,2]
[393370397,1762537839420,-197.23877412,0.00016985,2]
[393370398,1762537839430,-277.74478478,0.00016985,2]
[393370399,1762537839440,-500.0,0.00016985,2]
[393370400,1762537839450,-267.2389784,0.00016985,2]
[393370401,1762537839459,-92902.76,0.00016986,2]
[393370402,1762537839469,-500.0,0.00016989,2]
[393370403,1762537839479,-250.0,0.00017,2]
[393370404,1762537839489,-150.0,0.00017,2]
[393370405,1762537839499,-150.0,0.00017,2]
[393370406,1762537839508,-150.0,0.00017,2]
[393370407,1762537839518,-150.0,0.00017,2]
[393370408,1762537839528,-500.0,0.00017,2]
[393370409,1762537839538,-150.0,0.00017,2]
[393370410,1762537839547,-150.0,0.00017,2]
[393370411,1762537839557,-150.0,0.00017,2]
[393370412,1762537839568,-150.0,0.00017,2]
[393370413,1762537839577,-150.0,0.00017,2]
[393370414,1762537839587,-150.0,0.00017,2]
[393370415,1762537839598,-150.0,0.00017,2]
[393370416,1762537839609,-150.0,0.00017,2]
[393370417,1762537839625,-150.0,0.00017,2]
[393370418,1762537839635,-250.0,0.00017,2]
[393370419,1762537839646,-150.0,0.00017,2]
[393370420,1762537839656,-150.0,0.00017,2]
[393370421,1762537839666,-150.0,0.00017,2]
[393370422,1762537839676,-150.0,0.00017,2]
[393370423,1762537839686,-150.0,0.00017,2]
[393370424,1762537839696,-150.0,0.00017,2]
[393370425,1762537839706,-150.0,0.00017,2]
[393370426,1762537839716,-150.0,0.00017,2]
[393370427,1762537839725,-150.0,0.00017,2]
[393370428,1762537839736,-150.0,0.00017,2]
[393370429,1762537839745,-318.06,0.00017018,2]
[393370430,1762537839755,-150.49736311,0.00017058,2]
[393370431,1762537839765,-150.0,0.00017058,2]
[393370432,1762537839775,-500.0,0.00017058,2]
[393370433,1762537839784,-150.0,0.00017058,2]
[393370434,1762537839794,-535.0,0.00017058,2]
[393370435,1762537839803,-150.0,0.00017058,2]
[393370436,1762537839813,-500.0,0.00017058,2]
[393370437,1762537839822,-495.0,0.00017058,2]
[393370438,1762537839832,-163.93,0.00017078,2]
[393370439,1762537839841,-150.0,0.00017082,2]
[393370440,1762537839850,-440.66,0.00017095,2]
[393370441,1762537839860,-270.95215059,0.00017097,2]
[393370442,1762537839873,-500.0,0.00017097,2]
[393370443,1762537839882,-150.0,0.00017097,2]
[393370444,1762537839892,-13969.71436223,0.00017114,2]
[393370445,1762537839901,-150.0,0.00017137,2]
[393370446,1762537839911,-150.0,0.00017137,2]
[393370447,1762537839921,-500.0,0.00017137,2]
[393370448,1762537839930,-150.0,0.00017137,2]
[393370449,1762537839940,-150.0,0.00017137,2]
[393370450,1762537839949,-150.0,0.00017137,2]
[393370451,1762537839958,-150.0,0.00017137,2]
[393370452,1762537839967,-150.0,0.00017137,2]
[393370454,1762537839977,-150.0,0.00017137,2]
[393370455,1762537839986,-150.0,0.00017137,2]
[393370456,1762537839995,-150.0,0.00017137,2]
[393370457,1762537840005,-329.0,0.00017139,2]
[393370458,1762537840014,-156.92069662,0.00017142,2]
[393370459,1762537840023,-150.0,0.00017195,2]
[393370460,1762537840032,-500.0,0.00017195,2]
[393370461,1762537840042,-150.0,0.00017195,2]
[393370462,1762537840051,-535.0,0.00017195,2]
[393370463,1762537840060,-213.28175054,0.00017195,2]
[393370464,1762537840069,-500.0,0.00017195,2]
[393370465,1762537840079,-495.0,0.00017195,2]
[393370467,1762537840088,-166.66,0.00017203,2]
[393370469,1762537840097,-150.0,0.00017219,2]
[393370471,1762537840107,-168.24179502,0.00017234,2]
[393370474,1762537840119,-150.0,0.00017234,2]
[393370476,1762537840128,-200.0,0.00017274,2]
[393370478,1762537840138,-200.0,0.00017274,2]
[393370480,1762537840147,-500.0,0.00017274,2]
[393370482,1762537840157,-200.0,0.00017274,2]
[393370484,1762537840166,-200.0,0.00017274,2]
[393370486,1762537840176,-150.0,0.00017274,2]
[393370488,1762537840184,-150.0,0.00017274,2]
[393370490,1762537840194,-150.0,0.00017274,2]
[393370491,1762537840203,-150.0,0.00017274,2]
[393370492,1762537840212,-150.0,0.00017274,2]
[393370493,1762537840221,-13969.71436223,0.00017311,2]
[393370495,1762537840231,-154.5547493,0.00017332,2]
[393370496,1762537840239,-200.08208835,0.00017332,2]
[393370498,1762537840249,-150.0,0.00017332,2]
[393370500,1762537840258,-535.0,0.00017332,2]
[393370502,1762537840268,-500.0,0.00017332,2]
[393370504,1762537840277,-495.0,0.00017332,2]
[393370507,1762537840287,-1000.0,0.00017392,2]
[393370508,1762537840297,-156.92069662,0.00017395,2]
[393370510,1762537840307,-500.0,0.00017411,2]
[393370512,1762537840319,-150.0,0.00017411,2]
[393370514,1762537840329,-150.0,0.00017411,2]
[393370516,1762537840338,-200.0,0.00017411,2]
[393370519,1762537840349,-150.0,0.00017411,2]
[393370521,1762537840360,-150.0,0.00017411,2]
[393370523,1762537840372,-1000.0,0.00017434,2]
[393370524,1762537840383,-1000.0,0.00017434,2]
[393370526,1762537840393,-150.0,0.00017469,2]
[393370527,1762537840403,-535.0,0.00017469,2]
[393370528,1762537840413,-201.67991909,0.00017469,2]
[393370529,1762537840422,-495.0,0.00017469,2]
[393370530,1762537840431,-1000.0,0.00017505,2]
[393370531,1762537840440,-500.0,0.00017505,2]
[393370532,1762537840449,-1004.28126932,0.00017505,2]
[393370533,1762537840459,-1000.0,0.00017505,2]
[393370534,1762537840468,-1007.57285581,0.00017505,2]
[393370535,1762537840478,-1073.17708165,0.00017505,2]
[393370536,1762537840486,-1000.0,0.00017505,2]
[393370537,1762537840495,-1000.0,0.00017505,2]
[393370538,1762537840505,-1000.0,0.00017505,2]
[393370539,1762537840514,-500.0,0.00017505,2]
[393370540,1762537840524,-13969.71436223,0.00017507,2]
[393370541,1762537840533,-166.66,0.00017509,2]
[393370542,1762537840543,-500.0,0.00017521,2]
[393370543,1762537840552,-500.0,0.00017548,2]
[393370544,1762537840562,-263.07061349,0.00017548,2]
[393370545,1762537840571,-150.0,0.00017548,2]
[393370546,1762537840581,-150.0,0.00017548,2]
[393370547,1762537840590,-150.0,0.00017548,2]
[393370548,1762537840599,-500.0,0.00017599,2]
[393370549,1762537840608,-250.0,0.00017606,2]
[393370550,1762537840619,-535.0,0.00017606,2]
[393370551,1762537840628,-495.0,0.00017606,2]
[393370552,1762537840637,-690.54252196,0.0001763,2]
[393370553,1762537840646,-156.92069662,0.00017647,2]
[393370554,1762537840655,-500.0,0.00017685,2]
[393370555,1762537840665,-250.0,0.00017685,2]
[393370556,1762537840674,-250.0,0.00017685,2]
[393370557,1762537840683,-159.45484298,0.00017685,2]
[393370558,1762537840692,-13969.71436223,0.00017704,2]
[393370559,1762537840701,-150.0,0.00017706,2]
[393370560,1762537840710,-150.0,0.00017706,2]
[393370561,1762537840719,-363.32,0.00017706,2]
[393370562,1762537840728,-500.0,0.00017727,2]
[393370563,1762537840737,-9999.99,0.00017728,2]
[393370564,1762537840746,-13020.09,0.00017728,2]
[393370565,1762537840756,-893.7197719,0.0001773,2]
[393370566,1762537840765,-420.0,0.00017742,2]
[393370567,1762537840774,-535.0,0.00017743,2]
[393370568,1762537840783,-495.0,0.00017743,2]
[393370569,1762537840792,-219.44793799,0.0001775,2]
[393370570,1762537840801,-690.54252194,0.00017765,2]
[393370571,1762537840810,-1459.0,0.000178,2]
[393370572,1762537840820,-150.0,0.00017808,2]
[393370573,1762537840829,-311.988,0.00017808,2]
[393370574,1762537840839,-7000.0,0.0001782,2]
[393370575,1762537840848,-500.0,0.00017822,2]
[393370576,1762537840857,-4409.615,0.00017828,2]
[393370577,1762537840869,-1680.0,0.00017831,2]
[393370578,1762537840878,-1316.0,0.00017842,2]
[393370579,1762537840888,-3424.0,0.00017842,2]
[393370580,1762537840897,-607.0,0.00017842,2]
[393370581,1762537840906,-596.318,0.00017842,2]
[393370582,1762537840915,-905.0,0.00017842,2]
[393370583,1762537840924,-1188.0,0.00017842,2]
[393370584,1762537840933,-1596.0,0.00017842,2]
[393370585,1762537840942,-821.0,0.00017842,2]
[393370586,1762537840952,-814.749,0.00017842,2]
[393370587,1762537840961,-1273.0,0.00017842,2]
[393370588,1762537840971,-559.0,0.00017842,2]
[393370589,1762537840980,-6659.0,0.00017842,2]
[393370590,1762537840989,-6476.0,0.00017842,2]
[393370591,1762537840998,-2142.0,0.00017842,2]
[393370592,1762537841008,-338.05954966,0.00017855,2]
[393370593,1762537841017,-195.0,0.00017855,2]
[393370594,1762537841026,-300.0,0.00017855,2]
[393370595,1762537841036,-300.0,0.00017855,2]
[393370596,1762537841045,-300.0,0.00017855,2]
[393370597,1762537841054,-300.0,0.00017855,2]
[393370598,1762537841063,-300.0,0.00017855,2]
[393370599,1762537841073,-197.18308,0.00017855,2]
[393370600,1762537841082,-300.0,0.00017855,2]
[393370601,1762537841091,-2500.0,0.00017855,2]
[393370602,1762537841100,-195.0,0.00017855,2]
[393370603,1762537841109,-150.0,0.00017855,2]
[393370604,1762537841120,-200.0,0.00017855,2]
[393370605,1762537841129,-200.0,0.00017855,2]
[393370606,1762537841138,-200.0,0.00017855,2]
[393370607,1762537841146,-200.0,0.00017855,2]
[393370608,1762537841156,-201.61257308,0.00017855,2]
[393370609,1762537841165,-250.0,0.00017855,2]
[393370610,1762537841175,-359.94045034,0.00017855,2]
[393370611,1762537841186,-195.0,0.00017855,2]
[393370612,1762537841195,-6750.6092138,0.0001787,2]
[393370613,1762537841204,-535.0,0.0001788,2]
[393370614,1762537841214,-495.0,0.0001788,2]
[393370615,1762537841224,-281.39,0.00017889,2]
[393370616,1762537841234,-500.0,0.00017899,2]
[393370617,1762537841244,-500.0,0.00017899,2]
[393370618,1762537841253,-166.50219605,0.000179,2]
[393370619,1762537841265,-344.1969,0.000179,2]
[393370620,1762537841275,-666.51673486,0.000179,2]
[393370621,1762537841285,-4381.44905859,0.000179,2]
[393370622,1762537841295,-1000.0,0.000179,2]
[393370623,1762537841304,-160.56398269,0.000179,2]
[393370624,1762537841318,-160.98037661,0.000179,2]
[393370625,1762537841327,-13969.71436223,0.000179,2]
[393370626,1762537841337,-690.54252194,0.000179,2]
[393370627,1762537841346,-9560.44544483,0.000179,2]
[393370628,1762537841355,-7000.0,0.0001793,2]
[393370629,1762537841364,-1000.0,0.0001794,2]
[393370630,1762537841377,-150.0,0.00017945,2]
[393370631,1762537841388,-500.0,0.00017959,2]
[393370632,1762537841397,-181.0,0.00017973,2]
[393370633,1762537841407,-1753.0,0.00017973,2]
[393370634,1762537841417,-500.0,0.00017973,2]
[393370635,1762537841428,-500.0,0.00017973,2]
[393370636,1762537841439,-500.0,0.00017973,2]
[393370637,1762537841450,-500.0,0.00017973,2]
[393370638,1762537841460,-500.0,0.00017973,2]
[393370639,1762537841471,-500.0,0.00017973,2]
[393370641,1762537841480,-648.2935781,0.00017973,2]
[393370642,1762537841490,-500.0,0.00017973,2]
[393370643,1762537841499,-501.10194398,0.00017973,2]
[393370644,1762537841508,-500.0,0.00017973,2]
[393370645,1762537841518,-500.0,0.00017973,2]
[393370646,1762537841527,-500.0,0.00017973,2]
[393370647,1762537841537,-500.0,0.00017973,2]
[393370648,1762537841546,-360.61508588,0.00017973,2]
[393370649,1762537841554,-500.0,0.00017973,2]
[393370650,1762537841563,-500.0,0.00017973,2]
[393370651,1762537841572,-500.0,0.00017973,2]
[393370652,1762537841581,-500.0,0.00017973,2]
[393370653,1762537841590,-371.11277206,0.00017973,2]
[393370654,1762537841599,-500.0,0.00017973,2]
[393370655,1762537841608,-158.19215752,0.00017973,2]
[393370656,1762537841621,-500.0,0.00017973,2]
[393370657,1762537841631,-500.0,0.00017973,2]
[393370658,1762537841641,-500.0935881,0.00017973,2]
[393370659,1762537841651,-500.0,0.00017973,2]
[393370660,1762537841661,-500.0,0.00017973,2]
[393370661,1762537841672,-649.36368312,0.00017973,2]
[393370662,1762537841681,-500.0,0.00017973,2]
[393370663,1762537841691,-500.77100973,0.00017973,2]
[393370664,1762537841700,-500.51641195,0.00017973,2]
[393370665,1762537841709,-162.42661028,0.00017973,2]
[393370666,1762537841718,-500.0,0.00017973,2]
[393370667,1762537841728,-500.0,0.00017973,2]
[393370668,1762537841736,-500.0,0.00017973,2]
[393370669,1762537841745,-500.2462784,0.00017973,2]
[393370670,1762537841754,-465.14690898,0.00017973,2]
[393370671,1762537841763,-500.0,0.00017973,2]
[393370672,1762537841772,-500.0,0.00017973,2]
[393370673,1762537841781,-500.0,0.00017973,2]
[393370674,1762537841790,-500.0,0.00017982,2]
[393370675,1762537841799,-1023.22717164,0.00017982,2]
[393370676,1762537841809,-542.50588838,0.0001799,2]
[393370677,1762537841818,-542.50588838,0.0001799,2]
[393370678,1762537841828,-542.50588838,0.0001799,2]
[393370679,1762537841837,-151.0,0.00017997,2]
[393370680,1762537841847,-4248.17276886,0.00017999,2]
[393370681,1762537841856,-6880.4267049,0.00017999,2]
[393370682,1762537841867,-300.0,0.00017999,2]
[393370683,1762537841879,-500.0,0.00017999,2]
[393370684,1762537841889,-417.54862495,0.00017999,2]
[393370685,1762537841898,-500.0,0.00017999,2]
[393370686,1762537841908,-500.0,0.00017999,2]
[393370687,1762537841918,-419.6555252,0.00017999,2]
[393370688,1762537841928,-387.85351644,0.00017999,2]
[393370689,1762537841938,-528.75,0.00017999,2]
[393370690,1762537841948,-300.0,0.00017999,2]
[393370691,1762537841958,-500.0,0.00017999,2]
[393370692,1762537841967,-500.0,0.00017999,2]
[393370693,1762537841977,-381.7869413,0.00017999,2]
[393370694,1762537841986,-1832577.45236504,0.00018,2]
[393370695,1762537842179,-10228.3334292,0.00018,2]
[393370696,1762537842191,-2694.6,0.00018,2]
[393370697,1762537842219,-40380.2146991,0.00018,2]
[393370698,1762537842255,500.0,0.00016231,2]
[393370699,1762537842591,-500.0,0.00016547,2]
[393370700,1762537842600,-156.92069662,0.000179,2]
[393370701,1762537842609,-9323.52270953,0.00018,2]
[393370702,1762537842780,-302.0999999,0.00018,2]
[393370703,1762537842791,-1615.74810614,0.00018,2]
[393370704,1762537842806,-58891.15131235,0.00018,2]
[393370705,1762537842816,-3203.16883971,0.00018,2]
[393370706,1762537842827,-1165.44999,0.00018,2]
[393370707,1762537842838,-1695.4,0.00018,2]
[393370708,1762537842853,-2856.09503343,0.00018,2]
[393370709,1762537842864,-5117.75,0.00018,2]
[393370710,1762537842878,-1020.46,0.00018,2]
[393370711,1762537842890,-2230.09996515,0.00018,2]
[393370715,1762537843513,-0.01577475,0.00018,2]
[393370716,1762537843526,-6054190.07899929,0.00018,2]
[393370717,1762537843535,-744431.94703877,0.00018,2]
[393370718,1762537843547,-2243.95,0.00018,2]
[393370719,1762537843562,-15307.73849599,0.00018,2]
[393370730,1762537844972,-727.2,0.00018,2]
[393370731,1762537844983,-47505.53296916,0.00018,2]
[393370732,1762537844994,-1906.3479154,0.00018,2]
[393370733,1762537845005,-188485.60250686,0.00018,2]
[393370734,1762537845017,-4374.52848945,0.00018,2]
[393370735,1762537845028,-52711.31375547,0.00018,2]
[393370736,1762537845039,-720.18112473,0.00018,2]
[393370737,1762537845054,-48415.87761829,0.00018,2]
[393370738,1762537845065,-349.24300055,0.00018,2]
[393370739,1762537845076,-464.76347741,0.00018,2]
[393370740,1762537845087,-1825.84649464,0.00018,2]
[393370741,1762537845098,-311.89242997,0.00018,2]
[393370742,1762537845109,-940.372799,0.00018,2]
[393370743,1762537845122,-3938.5914395,0.00018,2]
[393370744,1762537845133,-7648.00611916,0.00018,2]
[393370745,1762537845144,-752716.46127766,0.00018,2]
[393370746,1762537845155,-819695.32913934,0.00018,2]
[393370747,1762537845167,-744.38519654,0.00018,2]
[393370763,1762537845483,-274.41931297,0.00018,2]
[393370764,1762537845494,-303.05033877,0.00018,2]
[393370765,1762537845505,-94341.86773493,0.00018,2]
[393370766,1762537845515,-241.23561892,0.00018,2]
[393370767,1762537845524,-150.0,0.00018,2]
[393370768,1762537845534,-400.0,0.00018,2]
[393370769,1762537845543,-655423.43404646,0.00018,2]
[393370773,1762537846572,-732784.50200604,0.00018,2]
[393370774,1762537846630,-1769.79303053,0.00018,2]
[393370775,1762537846642,-987.54994659,0.00018,2]
[393370776,1762537846653,-4100.0,0.00018,2]
[393370777,1762537846664,-616.41039104,0.00018,2]
[393370778,1762537846674,-8954.27379417,0.00018,2]
[393370779,1762537846685,-38579.43230976,0.00018,2]
[393370780,1762537846699,-879.78441143,0.00018,2]
[393370781,1762537846710,-2755.85273251,0.00018,2]
[393370782,1762537846729,-914.25121327,0.00018,2]
[393370783,1762537846742,-1815.84326404,0.00018,2]
[393370784,1762537846753,-10262.0,0.00018,2]
[393370785,1762537846764,-4328.81186658,0.00018,2]
[393370786,1762537846775,-2098.71502061,0.00018,2]
[393370787,1762537846786,-500.0,0.00018,2]
[393370788,1762537846798,-566.58838633,0.00018,2]
[393370789,1762537846809,-342.9448965,0.00018,2]
[393370790,1762537846820,-251.27200006,0.00018,2]
[393370794,1762537874417,-500.0,0.00016231,2]
[393370795,1762537874451,-500.0,0.00016231,2]
[393370796,1762537874484,-500.0,0.00016231,2]
[393370797,1762537874516,-269.88244803,0.00016231,2]
[393370798,1762537886153,500.0,0.00016231,2]
[393370799,1762537892177,500.0,0.00016231,2]
[393370800,1762537892371,500.0,0.00016231,2]
[393370801,1762537892443,500.0,0.00016231,2]
[393370802,1762537892501,500.0,0.00016231,2]
[393370803,1762537892549,338.50438672,0.00016231,2]
[393370804,1762537897278,3621.74071722,0.00016132,2]
[393370805,1762537897305,10000.01,0.00016132,2]
[393370806,1762537897330,10000.01,0.00016132,2]
[393370807,1762537897352,9644.49858278,0.00016132,2]
[393370808,1762537902952,355.51141722,0.00016231,2]
[393370809,1762537902975,144.48858278,0.00016231,2]
[393370810,1762537903069,500.0,0.00016231,2]
[393370811,1762537903123,500.0,0.00016231,2]
[393370812,1762537903179,333.15845266,0.00016231,2]
[393370813,1762537905354,500.0,0.00016231,2]
[393370819,1762537919107,500.0,0.00016231,2]
[393370820,1762537919166,500.0,0.00016231,2]
[393370821,1762537919455,500.0,0.00016231,2]
[393370822,1762537919493,446.24684857,0.00016231,2]
[393370829,1762537931700,500.0,0.00016231,2]
[393370830,1762537953119,500.0,0.00016231,2]
[393370831,1762537958306,500.0,0.00016231,2]
[393370847,1762538106513,500.0,0.00016231,2]
[393370850,1762538119792,500.0,0.00016231,2]
[393370861,1762538173019,-500.0,0.00016495,2]
[393370869,1762538296404,999.0,0.00016907,3]
[393370872,1762538348282,514.09905587,0.000175,3]
[393370873,1762538350096,500.0,0.00016231,2]
[393370874,1762538415319,500.0,0.00016231,2]
[393370875,1762538435425,-500.0,0.00016595,2]
[393370876,1762538435447,-425.64626727,0.00016595,2]
[393370877,1762538435470,-500.0,0.00016595,2]
[393370878,1762538435495,-300.0,0.00016788,2]
[393370879,1762538435526,-300.0,0.00016918,2]
[393370880,1762538435553,-1200.0,0.00016918,2]
[393370881,1762538435576,-2524.72,0.00016927,2]
[393370882,1762538435600,-180.1,0.00016982,2]
[393370883,1762538435627,-300.0,0.0001728,2]
[393370884,1762538435651,-300.0,0.0001728,2]
[393370885,1762538435674,-300.0,0.0001728,2]
[393370886,1762538435697,-254.0,0.00017547,2]
[393370887,1762538435720,-893.71977191,0.00017586,2]
[393370888,1762538435744,-366.0,0.00017601,2]
[393370889,1762538435767,-254.0,0.00017677,2]
[393370890,1762538435793,-254.0,0.00017694,2]
[393370891,1762538435815,-477.12,0.000177,2]
[393370892,1762538435835,-150.0,0.00017706,2]
[393370893,1762538436067,-150.0,0.00017706,2]
[393370894,1762538436092,-366.0,0.00017725,2]
[393370895,1762538436126,-219.447938,0.00017765,2]
[393370896,1762538436154,-5564.61210417,0.00017799,2]
[393370897,1762538436179,-161.12363063,0.00017799,2]
[393370898,1762538436202,-150.0,0.000178,2]
[393370899,1762538436225,-300.00504893,0.000178,2]
[393370900,1762538436249,-5564.61210415,0.0001781,2]
[393370901,1762538436273,-4043.89313494,0.0001782,2]
[393370905,1762538606087,509.77,0.00013699,2]
[393371028,1762539031609,-0.53651951,0.0001682,2]
[393371029,1762539031621,-715.90244029,0.0001682,2]
[393371030,1762539031632,-483.5610402,0.0001682,2]
[393371031,1762539031641,-359.94045034,0.00016821,2]
[393371032,1762539031651,-195.0,0.00016821,2]
[393371033,1762539031661,-8363.55,0.00016821,2]
[393371034,1762539031671,-200.0,0.00016836,2]
[393371035,1762539031685,-195.0,0.0001684,2]
[393371036,1762539031694,-300.0,0.00016851,2]
[393371037,1762539031703,-300.0,0.00016869,2]
[393371038,1762539031712,-181.64696473,0.0001687,2]
[393371039,1762539031725,-18.35303527,0.0001687,2]
[393371040,1762539031735,-200.0,0.0001687,2]
[393371041,1762539031744,-201.61257308,0.0001687,2]
[393371043,1762539031753,-252.12,0.00016881,2]
[393371045,1762539031764,-300.0,0.00016881,2]
[393371047,1762539031773,-300.0,0.00016881,2]
[393371049,1762539031782,-275.2,0.00016915,2]
[393371051,1762539031791,-1000.0,0.00016919,2]
[393371053,1762539031804,-1000.0,0.00016919,2]
[393371056,1762539031813,-1000.0,0.00016919,2]
[393371058,1762539031822,-725.504,0.00016919,2]
[393371060,1762539031831,-250.0,0.00017,2]
[393371063,1762539031844,-352.53,0.00017621,2]
[393371066,1762539031853,-1316.0,0.00017665,2]
[393371069,1762539031862,-150.0,0.00017706,2]
[393371072,1762539031871,-9999.99,0.00017706,2]
[393371075,1762539031880,-150.99,0.00017706,2]
[393371077,1762539031889,-219.44793799,0.00017724,2]
[393371079,1762539031898,-893.7197719,0.00017738,2]
[393371081,1762539031908,-311.988,0.00017743,2]
[393371083,1762539031917,-4409.615,0.00017761,2]
[393371085,1762539031926,-2842.27996171,0.0001779,2]
[393371087,1762539031936,-4889.83458926,0.0001779,2]
[393371089,1762539031945,-690.54252196,0.0001779,2]
[393371091,1762539031954,-160.56398269,0.0001779,2]
[393371093,1762539031964,-157.35296717,0.0001779,2]
[393371095,1762539031974,-156.92069662,0.0001779,2]
[393371097,1762539031983,-666.51673486,0.0001779,2]
[393371099,1762539031992,-5000.0,0.0001779,2]
[393371101,1762539032001,-690.54252194,0.00017795,2]
[393371103,1762539032010,-9560.44544483,0.000178,2]
[393371105,1762539032019,-690.54252194,0.000178,2]
[393371107,1762539032028,-1751.77650686,0.00017802,2]
[393371110,1762539032040,-1090.50345476,0.00017802,2]
[393371112,1762539032053,-4889.83458917,0.00017802,2]
[393371114,1762539032062,-151.0,0.00017813,2]
[393371116,1762539032071,-151.0,0.00017813,2]
[393371118,1762539032081,-151.0,0.00017813,2]
[393371120,1762539032090,-151.0,0.00017813,2]
[393371122,1762539032099,-151.0,0.00017813,2]
[393371124,1762539032109,-151.0,0.00017813,2]
[393371126,1762539032119,-151.0,0.00017813,2]
[393371127,1762539032128,-478.52341267,0.00017814,2]
[393371130,1762539032140,-1245.16315287,0.00017814,2]
[393371132,1762539032151,-452.11662572,0.00017814,2]
[393371134,1762539032163,-440.56810984,0.00017814,2]
[393371136,1762539032174,-225.90866052,0.00017814,2]
[393371138,1762539032184,-774.09133948,0.00017814,2]
[393371140,1762539032195,-510.0,0.00017814,2]
[393371144,1762539032213,-3605.74324969,0.00017814,2]
[393371146,1762539032224,-150.0,0.0001782,2]
[393371148,1762539032234,-171.93,0.0001782,2]
[393371150,1762539032243,-193.23155827,0.0001782,2]
[393371152,1762539032252,-700.66516693,0.00017822,2]
[393371154,1762539032261,-403.4952759,0.00017822,2]
[393371156,1762539032270,-820.0,0.00017824,2]
[393371158,1762539032279,-1596.0,0.00017824,2]
[393371160,1762539032289,-812.0,0.00017824,2]
[393371162,1762539032299,-1273.0,0.00017824,2]
[393371164,1762539032309,-559.0,0.00017824,2]
[393371166,1762539032318,-6051.22958041,0.00017824,2]
[393371454,1762539037288,-424.77041959,0.00017824,2]
[393371455,1762539037298,-989.77462928,0.00017824,2]
[393371456,1762539037502,-1152.22537072,0.00017824,2]
[393371457,1762539037512,-193.23155826,0.00017824,2]
[393371458,1762539037522,-2842.27996162,0.00017827,2]
[393371459,1762539037531,-4889.83458917,0.00017827,2]
[393371460,1762539037541,-1581.71142553,0.0001783,2]
[393371461,1762539037550,-2842.27996162,0.00017839,2]
[393371462,1762539037562,-4889.83458917,0.00017839,2]
[393371463,1762539037571,-150.0,0.00017842,2]
[393371464,1762539037581,-150.0,0.00017842,2]
[393371465,1762539037591,-607.0,0.00017842,2]
[393371466,1762539037600,-3424.0,0.00017842,2]
[393371467,1762539037608,-2842.27996162,0.00017851,2]
[393371468,1762539037618,-4889.83458917,0.00017851,2]
[393371469,1762539037627,-500.0,0.00017862,2]
[393371470,1762539037636,-500.0,0.00017862,2]
[393371471,1762539037646,-500.0,0.00017862,2]
[393371472,1762539037655,-500.0,0.00017862,2]
[393371474,1762539037665,-500.0,0.00017862,2]
[393371476,1762539037674,-460.66022988,0.00017862,2]
[393371477,1762539037688,-500.0,0.00017862,2]
[393371479,1762539037698,-500.0,0.00017862,2]
[393371481,1762539037707,-500.0,0.00017862,2]
[393371484,1762539037717,-2842.27996162,0.00017863,2]
[393371487,1762539037728,-4889.83458917,0.00017863,2]
[393371488,1762539037738,-500.0,0.00017873,2]
[393371491,1762539037747,-500.0,0.00017873,2]